fUSD/lending_fUSD_20250225
["ID","MTS","AMOUNT","RATE_DAILY","PERIOD"]
[354420250,1740480651813,-500.0,0.00041643,2]
[354420251,1740480651822,-500.0,0.00041643,2]
[354420252,1740480651831,-500.0,0.00041643,2]
[354420253,1740480651840,-500.0,0.00041643,2]
[354420254,1740480651849,-500.0,0.00041643,2]
[354420255,1740480651859,-1053.6,0.00041643,2]
[354420256,1740480651868,-288.17,0.00041643,2]
[354420257,1740480651877,-500.0,0.00041643,2]
[354420258,1740480651887,-500.0,0.00041643,2]
[354420259,1740480651896,-500.0,0.00041643,2]
[354420260,1740480651906,-500.0,0.00041643,2]
[354420261,1740480651915,-500.0,0.00041643,2]
[354420262,1740480651924,-277.1,0.00041643,2]
[354420263,1740480651934,-632.65,0.00041643,2]
[354420264,1740480651943,-500.0,0.00041643,2]
[354420265,1740480651953,-500.0,0.00041643,2]
[354420266,1740480651964,-500.0,0.00041643,2]
[354420267,1740480651974,-500.0,0.00041643,2]
[354420268,1740480651985,-500.0,0.00041643,2]
[354420269,1740480651994,-502.23470872,0.00041643,2]
[354420270,1740480652004,-500.0,0.00041643,2]
[354420271,1740480652014,-500.0,0.00041643,2]
[354420272,1740480652024,-500.0,0.00041643,2]
[354420273,1740480652036,-500.0,0.00041643,2]
[354420274,1740480652045,-515.34,0.00041643,2]
[354420275,1740480652054,-500.0,0.00041643,2]
[354420276,1740480652064,-500.0,0.00041643,2]
[354420277,1740480652074,-500.0,0.00041643,2]
[354420278,1740480652083,-500.0,0.00041643,2]
[354420279,1740480652092,-500.0,0.00041643,2]
[354420280,1740480652103,-500.0,0.00041643,2]
[354420281,1740480652115,-500.0,0.00041643,2]
[354420282,1740480652125,-500.0,0.00041643,2]
[354420283,1740480652135,-174.34,0.00041643,2]
[354420284,1740480652145,-500.0,0.00041643,2]
[354420285,1740480652154,-500.0,0.00041643,2]
[354420286,1740480652164,-606.94,0.00041643,2]
[354420287,1740480652173,-457.21461857,0.00041643,2]
[354420288,1740480652182,-535.85350152,0.00041643,2]
[354420289,1740480652192,-500.0,0.00041643,2]
[354420290,1740480652201,-500.0,0.00041643,2]
[354420291,1740480652212,-500.0,0.00041643,2]
[354420292,1740480652221,-827.97,0.00041643,2]
[354420293,1740480652230,-500.0,0.00041643,2]
[354420294,1740480652240,-1030.54,0.00041643,2]
[354420295,1740480652249,-546.21313816,0.00041643,2]
[354420296,1740480652258,-500.0,0.00041643,2]
[354420297,1740480652267,-500.0,0.00041643,2]
[354420298,1740480652276,-500.0,0.00041643,2]
[354420299,1740480652285,-500.0,0.00041643,2]
[354420300,1740480652295,-500.0,0.00041643,2]
[354420301,1740480652305,-186.74116789,0.00041643,2]
[354420302,1740480652314,-158.10848106,0.00041643,2]
[354420303,1740480652323,-500.0,0.00041643,2]
[354420304,1740480652333,-435.89,0.00041643,2]
[354420305,1740480652342,-500.0,0.00041643,2]
[354420306,1740480652352,-500.0,0.00041643,2]
[354420307,1740480652362,-500.0,0.00041643,2]
[354420308,1740480652371,-500.0,0.00041643,2]
[354420309,1740480652381,-500.0,0.00041643,2]
[354420310,1740480652391,-380.08,0.00041643,2]
[354420311,1740480652401,-418.33,0.00041643,2]
[354420312,1740480652411,-500.0,0.00041643,2]
[354420313,1740480652421,-378.37,0.00041643,2]
[354420314,1740480652430,-566.47,0.00041643,2]
[354420315,1740480652440,-500.0,0.00041643,2]
[354420316,1740480652449,-1133.29,0.00041643,2]
[354420317,1740480652458,-500.0,0.00041643,2]
[354420318,1740480652467,-500.0,0.00041643,2]
[354420319,1740480652476,-500.0,0.00041643,2]
[354420320,1740480652486,-3362.8,0.00041643,2]
[354420321,1740480652496,-586.03,0.00041643,2]
[354420322,1740480652505,-228.91,0.00041643,2]
[354420323,1740480652515,-243.56,0.00041643,2]
[354420324,1740480652524,-825.25,0.00041643,2]
[354420325,1740480652533,-583.3,0.00041643,2]
[354420326,1740480652541,-500.0,0.00041643,2]
[354420327,1740480652551,-500.0,0.00041643,2]
[354420328,1740480652560,-2678.16,0.00041643,2]
[354420329,1740480652568,-500.0,0.00041643,2]
[354420330,1740480652577,-500.0,0.00041643,2]
[354420331,1740480652586,-1293.93,0.00041643,2]
[354420332,1740480652595,-500.0,0.00041643,2]
[354420333,1740480652604,-183.4,0.00041643,2]
[354420334,1740480652615,-504.42913859,0.00041643,2]
[354420335,1740480652624,-500.0,0.00041643,2]
[354420336,1740480652633,-500.0,0.00041643,2]
[354420337,1740480652643,-196.88,0.00041643,2]
[354420338,1740480652652,-500.0,0.00041643,2]
[354420339,1740480652661,-500.0,0.00041643,2]
[354420340,1740480652671,-501.93105681,0.00041643,2]
[354420341,1740480652680,-194.54,0.00041643,2]
[354420342,1740480652689,-500.0,0.00041643,2]
[354420343,1740480652698,-500.0,0.00041643,2]
[354420344,1740480652707,-379.3,0.00041643,2]
[354420345,1740480652716,-534.79171727,0.00041643,2]
[354420346,1740480652725,-500.0,0.00041643,2]
[354420347,1740480652734,-502.77,0.00041643,2]
[354420348,1740480652744,-500.0,0.00041643,2]
[354420349,1740480652753,-500.0,0.00041643,2]
[354420351,1740480652762,-500.0,0.00041643,2]
[354420352,1740480652771,-500.0,0.00041643,2]
[354420353,1740480652780,-500.0,0.00041643,2]
[354420354,1740480652789,-500.0,0.00041643,2]
[354420355,1740480652798,-500.0,0.00041643,2]
[354420356,1740480652807,-423.63,0.00041643,2]
[354420357,1740480652817,-370.46,0.00041643,2]
[354420358,1740480652826,-197.29,0.00041643,2]
[354420359,1740480652836,-500.0,0.00041643,2]
[354420360,1740480652845,-500.0,0.00041643,2]
[354420361,1740480652855,-500.0,0.00041643,2]
[354420362,1740480652865,-500.0,0.00041643,2]
[354420363,1740480652875,-500.0,0.00041643,2]
[354420364,1740480652884,-523.43,0.00041643,2]
[354420365,1740480652893,-500.0,0.00041643,2]
[354420366,1740480652902,-500.0,0.00041643,2]
[354420367,1740480652911,-500.0,0.00041643,2]
[354420368,1740480652921,-364.58,0.00041643,2]
[354420369,1740480652929,-6547.08,0.00041643,2]
[354420370,1740480652939,-500.0,0.00041643,2]
[354420371,1740480652948,-500.0,0.00041643,2]
[354420372,1740480652958,-500.0,0.00041643,2]
[354420373,1740480652968,-506.5,0.00041643,2]
[354420374,1740480652978,-462.86,0.00041643,2]
[354420375,1740480652987,-500.0,0.00041643,2]
[354420376,1740480652996,-500.0,0.00041643,2]
[354420377,1740480653006,-500.0,0.00041643,2]
[354420378,1740480653015,-2445.04,0.00041643,2]
[354420379,1740480653028,-2895.07,0.00041643,2]
[354420380,1740480653038,-500.0,0.00041643,2]
[354420381,1740480653047,-1060.666566,0.00041643,14]
[354420382,1740480653057,-1060.666566,0.00041643,14]
[354420383,1740480653067,-447.83,0.00041643,2]
[354420384,1740480653076,-500.0,0.00041643,2]
[354420385,1740480653085,-1060.666566,0.00041643,14]
[354420386,1740480653095,-1060.666566,0.00041643,14]
[354420387,1740480653105,-564.14,0.00041643,2]
[354420388,1740480653115,-500.0,0.00041643,2]
[354420389,1740480653124,-1863.52,0.00041643,2]
[354420390,1740480653134,-2602.88,0.00041643,2]
[354420391,1740480653143,-500.0,0.00041643,2]
[354420392,1740480653152,-1009.74,0.00041643,2]
[354420393,1740480653163,-500.0,0.00041643,2]
[354420394,1740480653172,-500.0,0.00041643,2]
[354420395,1740480653181,-667.48,0.00041643,2]
[354420396,1740480653190,-1420.26,0.00041643,2]
[354420397,1740480653200,-500.0,0.00041643,2]
[354420398,1740480653209,-500.0,0.00041643,2]
[354420399,1740480653218,-240.78,0.00041643,2]
[354420400,1740480653227,-500.0,0.00041643,2]
[354420401,1740480653236,-500.0,0.00041643,2]
[354420402,1740480653245,-500.0,0.00041643,2]
[354420403,1740480653254,-500.0,0.00041643,2]
[354420404,1740480653263,-165.38,0.00041643,2]
[354420405,1740480653272,-500.0,0.00041643,2]
[354420406,1740480653383,-500.0,0.00041643,2]
[354420407,1740480653392,-500.0,0.00041643,2]
[354420408,1740480653402,-307.4089044,0.00041643,2]
[354420409,1740480653411,-2817.34,0.00041643,2]
[354420410,1740480653420,-500.0,0.00041643,2]
[354420411,1740480653430,-500.0,0.00041643,2]
[354420412,1740480653440,-546.36629554,0.00041643,2]
[354420413,1740480653450,-500.0,0.00041643,2]
[354420414,1740480653459,-500.0,0.00041643,2]
[354420415,1740480653468,-500.0,0.00041643,2]
[354420416,1740480653477,-500.0,0.00041643,2]
[354420417,1740480653487,-502.69152269,0.00041643,2]
[354420418,1740480653496,-217.59356733,0.00041643,2]
[354420419,1740480653505,-500.0,0.00041643,2]
[354420420,1740480653515,-500.0,0.00041643,2]
[354420421,1740480653524,-500.0,0.00041643,2]
[354420422,1740480653533,-500.0,0.00041643,2]
[354420423,1740480653543,-500.0,0.00041643,2]
[354420424,1740480653552,-504.85903486,0.00041643,2]
[354420425,1740480653561,-500.0,0.00041643,2]
[354420426,1740480653570,-500.0,0.00041643,2]
[354420427,1740480653579,-500.0,0.00041643,2]
[354420428,1740480653589,-500.0,0.00041643,2]
[354420429,1740480653598,-1180.68,0.00041643,2]
[354420430,1740480653607,-501.74274652,0.00041643,2]
[354420431,1740480653618,-500.0,0.00041643,2]
[354420432,1740480653627,-500.0,0.00041643,2]
[354420433,1740480653637,-500.0,0.00041643,2]
[354420434,1740480653646,-500.0,0.00041643,2]
[354420435,1740480653656,-500.0,0.00041643,2]
[354420436,1740480653665,-500.0,0.00041643,2]
[354420437,1740480653674,-500.0,0.00041643,2]
[354420438,1740480653684,-383.33,0.00041643,2]
[354420439,1740480653693,-700.48,0.00041643,2]
[354420440,1740480653703,-377.47672362,0.00041643,2]
[354420441,1740480653712,-500.0,0.00041643,2]
[354420442,1740480653721,-500.0,0.00041643,2]
[354420443,1740480653730,-500.0,0.00041643,2]
[354420444,1740480653740,-500.0,0.00041643,2]
[354420445,1740480653749,-500.0,0.00041643,2]
[354420446,1740480653758,-502.98281323,0.00041643,2]
[354420447,1740480653768,-500.0,0.00041643,2]
[354420448,1740480653777,-500.0,0.00041643,2]
[354420449,1740480653786,-1834.55,0.00041643,2]
[354420450,1740480653795,-500.0,0.00041643,2]
[354420451,1740480653804,-500.0,0.00041643,2]
[354420452,1740480653814,-500.0,0.00041643,2]
[354420453,1740480653824,-500.0,0.00041643,2]
[354420454,1740480653833,-500.0,0.00041643,2]
[354420455,1740480653842,-509.06929211,0.00041643,2]
[354420456,1740480653850,-500.0,0.00041643,2]
[354420457,1740480653859,-1618.21,0.00041643,2]
[354420458,1740480653868,-500.0,0.00041643,2]
[354420459,1740480653877,-500.0,0.00041643,2]
[354420460,1740480653886,-8032.08769766,0.00041833,15]
[354420461,1740480653894,-191.8894434,0.00041844,120]
[354420462,1740480653904,-212.45,0.00041846,2]
[354420463,1740480653913,-5000.0,0.000419,15]
[354420464,1740480653922,-2580.53,0.00041916,2]
[354420465,1740480653931,-515.26362229,0.00041917,2]
[354420466,1740480653940,-500.0,0.00041917,2]
[354420467,1740480653949,-779.37,0.00041917,2]
[354420468,1740480653958,-500.0,0.00041917,2]
[354420469,1740480653967,-500.0,0.00041917,2]
[354420470,1740480653976,-500.0,0.00041917,2]
[354420471,1740480653986,-500.0,0.00041917,2]
[354420472,1740480653995,-500.0,0.00041917,2]
[354420473,1740480654004,-442.33,0.00041917,2]
[354420474,1740480654013,-500.0,0.00041917,2]
[354420475,1740480654022,-500.0,0.00041917,2]
[354420476,1740480654035,-500.0,0.00041917,2]
[354420477,1740480654044,-500.0,0.00041917,2]
[354420478,1740480654053,-500.0,0.00041917,2]
[354420479,1740480654062,-500.0,0.00041917,2]
[354420480,1740480654071,-586.97199296,0.00041917,2]
[354420481,1740480654081,-355.37,0.00041917,2]
[354420482,1740480654090,-229.532329,0.00041917,2]
[354420483,1740480654099,-378.02,0.00041917,2]
[354420484,1740480654112,-589.75534132,0.00041917,2]
[354420485,1740480654121,-286.88553038,0.00041917,2]
[354420486,1740480654130,-570.51,0.00041917,2]
[354420487,1740480654139,-1943.378591,0.00041917,2]
[354420488,1740480654149,-506.37127043,0.00041917,2]
[354420489,1740480654159,-4784.114852,0.00041917,2]
[354420490,1740480654168,-642.07,0.00041917,2]
[354420491,1740480654177,-500.0,0.00041917,2]
[354420492,1740480654187,-500.0,0.00041917,2]
[354420493,1740480654197,-500.0,0.00041917,2]
[354420494,1740480654206,-344.36883275,0.00041917,2]
[354420495,1740480654216,-501.38849316,0.00041917,2]
[354420496,1740480654226,-500.0,0.00041917,2]
[354420497,1740480654235,-517.9,0.00041917,2]
[354420498,1740480654245,-1669.85,0.00041917,2]
[354420499,1740480654254,-500.0,0.00041917,2]
[354420500,1740480654264,-500.0,0.00041917,2]
[354420501,1740480654274,-500.0,0.00041917,2]
[354420502,1740480654283,-500.0,0.00041917,2]
[354420503,1740480654293,-500.0,0.00041917,2]
[354420504,1740480654302,-619.21218136,0.00041917,2]
[354420505,1740480654311,-504.97,0.00041917,2]
[354420506,1740480654320,-505.85135316,0.00041917,2]
[354420507,1740480654329,-500.0,0.00041917,2]
[354420508,1740480654338,-500.0,0.00041917,2]
[354420509,1740480654347,-500.0,0.00041917,2]
[354420510,1740480654357,-500.0,0.00041917,2]
[354420511,1740480654367,-500.0,0.00041917,2]
[354420512,1740480654376,-500.0,0.00041917,2]
[354420513,1740480654385,-3276.64,0.00041917,2]
[354420514,1740480654395,-500.0,0.00041917,2]
[354420515,1740480654404,-573.17,0.00041917,2]
[354420516,1740480654414,-554.00096275,0.00041917,2]
[354420517,1740480654424,-500.0,0.00041917,2]
[354420518,1740480654433,-500.0,0.00041917,2]
[354420519,1740480654443,-722.4,0.00041917,2]
[354420520,1740480654452,-500.0,0.00041917,2]
[354420521,1740480654462,-500.86,0.00041917,2]
[354420522,1740480654472,-505.81,0.00041917,2]
[354420523,1740480654481,-500.0,0.00041917,2]
[354420524,1740480654492,-884.58,0.00041917,2]
[354420525,1740480654502,-500.0,0.00041917,2]
[354420526,1740480654512,-500.0,0.00041917,2]
[354420527,1740480654522,-500.0,0.00041917,2]
[354420528,1740480654532,-971.82,0.00041917,2]
[354420529,1740480654541,-500.0,0.00041917,2]
[354420530,1740480654551,-167.97,0.00041917,2]
[354420531,1740480654560,-534.24,0.00041917,2]
[354420532,1740480654569,-275.52314385,0.00041917,2]
[354420533,1740480654579,-252.65,0.00041917,2]
[354420534,1740480654588,-460.16315225,0.00041917,2]
[354420535,1740480654598,-500.0,0.00041917,2]
[354420536,1740480654608,-267.26,0.00041917,2]
[354420537,1740480654619,-576.2,0.00041917,2]
[354420538,1740480654629,-367.05,0.00041917,2]
[354420539,1740480654638,-500.0,0.00041917,2]
[354420540,1740480654647,-500.0,0.00041917,2]
[354420541,1740480654657,-355.15,0.00041917,2]
[354420542,1740480654668,-500.0,0.00041917,2]
[354420543,1740480654678,-271.05,0.00041917,2]
[354420544,1740480654687,-435.94819369,0.00041917,2]
[354420545,1740480654696,-500.0,0.00041917,2]
[354420546,1740480654706,-434.16,0.00041917,2]
[354420547,1740480654716,-500.0,0.00041917,2]
[354420548,1740480654725,-216.18,0.00041917,2]
[354420549,1740480654735,-500.0,0.00041917,2]
[354420550,1740480654745,-527.2,0.00041917,2]
[354420551,1740480654754,-500.0,0.00041917,2]
[354420552,1740480654764,-186.68,0.00041917,2]
[354420553,1740480654773,-500.0,0.00041917,2]
[354420554,1740480654782,-304.76723207,0.00041917,2]
[354420555,1740480654792,-500.0,0.00041917,2]
[354420556,1740480654801,-500.0,0.00041917,2]
[354420557,1740480654810,-358.19,0.00041917,2]
[354420558,1740480654820,-500.0,0.00041917,2]
[354420559,1740480654830,-500.0,0.00041917,2]
[354420560,1740480654839,-500.0,0.00041917,2]
[354420561,1740480654848,-500.0,0.00041917,2]
[354420562,1740480654857,-500.0,0.00041917,2]
[354420563,1740480654868,-500.0,0.00041917,2]
[354420564,1740480654878,-500.0,0.00041917,2]
[354420565,1740480654888,-500.0,0.00041917,2]
[354420566,1740480654897,-500.0,0.00041917,2]
[354420567,1740480654906,-1053.6,0.00041917,2]
[354420568,1740480654916,-500.0,0.00041917,2]
[354420569,1740480654925,-502.11060325,0.00041917,2]
[354420570,1740480654935,-500.0,0.00041917,2]
[354420571,1740480654944,-500.0,0.00041917,2]
[354420572,1740480654954,-500.0,0.00041917,2]
[354420573,1740480654964,-295.52,0.00041917,2]
[354420574,1740480654975,-558.63,0.00041917,2]
[354420575,1740480654984,-500.0,0.00041917,2]
[354420576,1740480654994,-259.54883142,0.00041917,2]
[354420577,1740480655003,-193.22,0.00041917,2]
[354420578,1740480655013,-500.0,0.00041917,2]
[354420579,1740480655028,-500.0,0.00041917,2]
[354420580,1740480655037,-515.34,0.00041917,2]
[354420581,1740480655047,-500.0,0.00041917,2]
[354420582,1740480655056,-565.52,0.00041917,2]
[354420583,1740480655066,-500.0,0.00041917,2]
[354420584,1740480655075,-207.64,0.00041917,2]
[354420585,1740480655085,-500.0,0.00041917,2]
[354420586,1740480655097,-268.88,0.00041917,2]
[354420587,1740480655107,-500.0,0.00041917,2]
[354420588,1740480655118,-500.0,0.00041917,2]
[354420589,1740480655128,-591.05,0.00041917,2]
[354420590,1740480655137,-827.97,0.00041917,2]
[354420591,1740480655148,-500.0,0.00041917,2]
[354420592,1740480655158,-1030.54,0.00041917,2]
[354420593,1740480655167,-500.0,0.00041917,2]
[354420594,1740480655177,-500.0,0.00041917,2]
[354420595,1740480655187,-222.34,0.00041917,2]
[354420596,1740480655197,-500.0,0.00041917,2]
[354420597,1740480655206,-500.0,0.00041917,2]
[354420598,1740480655216,-500.0,0.00041917,2]
[354420599,1740480655227,-540.36,0.00041917,2]
[354420600,1740480655236,-500.0,0.00041917,2]
[354420601,1740480655245,-500.0,0.00041917,2]
[354420602,1740480655255,-500.0,0.00041917,2]
[354420603,1740480655265,-500.0,0.00041917,2]
[354420604,1740480655274,-496.46838537,0.00041917,2]
[354420605,1740480655283,-1133.29,0.00041917,2]
[354420606,1740480655293,-500.0,0.00041917,2]
[354420607,1740480655303,-500.0,0.00041917,2]
[354420608,1740480655404,-3362.8,0.00041917,2]
[354420609,1740480655424,-586.03,0.00041917,2]
[354420610,1740480655434,-825.25,0.00041917,2]
[354420611,1740480655444,-500.0,0.00041917,2]
[354420612,1740480655455,-500.0,0.00041917,2]
[354420613,1740480655465,-2678.16,0.00041917,2]
[354420614,1740480655474,-500.0,0.00041917,2]
[354420615,1740480655484,-500.0,0.00041917,2]
[354420616,1740480655494,-1293.93,0.00041917,2]
[354420617,1740480655503,-500.0,0.00041917,2]
[354420618,1740480655513,-257.87,0.00041917,2]
[354420619,1740480655523,-182.19034727,0.00041917,2]
[354420620,1740480655533,-500.0,0.00041917,2]
[354420621,1740480655544,-183.22,0.00041917,2]
[354420622,1740480655553,-500.0,0.00041917,2]
[354420623,1740480655563,-500.0,0.00041917,2]
[354420624,1740480655573,-500.0,0.00041917,2]
[354420625,1740480655584,-500.0,0.00041917,2]
[354420626,1740480655593,-588.89,0.00041917,2]
[354420627,1740480655603,-500.0,0.00041917,2]
[354420628,1740480655613,-383.14928571,0.00041917,2]
[354420629,1740480655623,-500.0,0.00041917,2]
[354420630,1740480655633,-500.0,0.00041917,2]
[354420631,1740480655643,-356.13,0.00041917,2]
[354420632,1740480655653,-500.0,0.00041917,2]
[354420633,1740480655663,-500.0,0.00041917,2]
[354420634,1740480655673,-500.0,0.00041917,2]
[354420635,1740480655682,-500.0,0.00041917,2]
[354420636,1740480655692,-500.0,0.00041917,2]
[354420637,1740480655702,-500.0,0.00041917,2]
[354420638,1740480655711,-500.0,0.00041917,2]
[354420639,1740480655721,-6547.08,0.00041917,2]
[354420640,1740480655732,-500.0,0.00041917,2]
[354420641,1740480655742,-255.06,0.00041917,2]
[354420642,1740480655752,-500.0,0.00041917,2]
[354420643,1740480655761,-649.78,0.00041917,2]
[354420644,1740480655771,-500.0,0.00041917,2]
[354420645,1740480655780,-500.0,0.00041917,2]
[354420646,1740480655790,-2445.04,0.00041917,2]
[354420647,1740480655800,-2895.07,0.00041917,2]
[354420648,1740480655810,-500.0,0.00041917,2]
[354420649,1740480655821,-1060.666566,0.00041917,14]
[354420650,1740480655831,-412.5,0.00041917,2]
[354420651,1740480655841,-500.0,0.00041917,2]
[354420652,1740480655852,-1060.666563,0.00041917,14]
[354420653,1740480655862,-1863.52,0.00041917,2]
[354420654,1740480655872,-2602.88,0.00041917,2]
[354420655,1740480655883,-285.4,0.00041917,2]
[354420656,1740480655893,-1009.74,0.00041917,2]
[354420657,1740480655903,-500.0,0.00041917,2]
[354420658,1740480655913,-500.0,0.00041917,2]
[354420659,1740480655921,-667.48,0.00041917,2]
[354420660,1740480655931,-1420.26,0.00041917,2]
[354420661,1740480655940,-500.0,0.00041917,2]
[354420662,1740480655954,-500.0,0.00041917,2]
[354420663,1740480655964,-500.0,0.00041917,2]
[354420664,1740480655973,-500.0,0.00041917,2]
[354420665,1740480655983,-189.82,0.00041917,2]
[354420666,1740480655992,-500.0,0.00041917,2]
[354420667,1740480656002,-500.0,0.00041917,2]
[354420668,1740480656010,-500.0,0.00041917,2]
[354420669,1740480656025,-166.1,0.00041917,2]
[354420670,1740480656035,-2817.34,0.00041917,2]
[354420671,1740480656044,-500.0,0.00041917,2]
[354420672,1740480656052,-190.71,0.00041917,2]
[354420673,1740480656062,-500.0,0.00041917,2]
[354420674,1740480656071,-500.0,0.00041917,2]
[354420675,1740480656084,-500.0,0.00041917,2]
[354420676,1740480656094,-163.34,0.00041917,2]
[354420677,1740480656104,-301.22,0.00041917,2]
[354420678,1740480656115,-500.0,0.00041917,2]
[354420679,1740480656124,-189.0,0.00041917,2]
[354420680,1740480656133,-500.0,0.00041917,2]
[354420681,1740480656143,-500.0,0.00041917,2]
[354420682,1740480656152,-502.25054469,0.00041917,2]
[354420683,1740480656161,-500.0,0.00041917,2]
[354420684,1740480656170,-500.0,0.00041917,2]
[354420685,1740480656179,-500.0,0.00041917,2]
[354420686,1740480656188,-1180.68,0.00041917,2]
[354420687,1740480656198,-500.0,0.00041917,2]
[354420688,1740480656207,-500.0,0.00041917,2]
[354420689,1740480656216,-502.19019422,0.00041917,2]
[354420690,1740480656226,-186.12,0.00041917,2]
[354420691,1740480656235,-500.0,0.00041917,2]
[354420692,1740480656245,-700.48,0.00041917,2]
[354420693,1740480656255,-194.41,0.00041917,2]
[354420694,1740480656265,-500.0,0.00041917,2]
[354420695,1740480656275,-266.86,0.00041917,2]
[354420696,1740480656287,-500.0,0.00041917,2]
[354420697,1740480656297,-500.0,0.00041917,2]
[354420698,1740480656307,-500.0,0.00041917,2]
[354420699,1740480656318,-500.0,0.00041917,2]
[354420700,1740480656328,-1834.55,0.00041917,2]
[354420701,1740480656338,-196.89,0.00041917,2]
[354420702,1740480656348,-500.0,0.00041917,2]
[354420703,1740480656358,-190.96,0.00041917,2]
[354420704,1740480656368,-618.82,0.00041917,2]
[354420705,1740480656378,-500.0,0.00041917,2]
[354420706,1740480656386,-1618.21,0.00041917,2]
[354420707,1740480656396,-500.0,0.00041917,2]
[354420708,1740480656405,-500.0,0.00041917,2]
[354420709,1740480656415,-201.10364311,0.00041948,9]
[354420710,1740480656425,-100000.0,0.00042,42]
[354420711,1740480656434,-520.0,0.00042,120]
[354420712,1740480656443,-762.499362,0.00042,120]
[354420713,1740480656453,-234.14816541,0.00042062,6]
[354420714,1740480656463,-20675.24171295,0.00042096,15]
[354420715,1740480656471,-191.8894434,0.00042137,120]
[354420716,1740480656480,-8032.08769766,0.00042178,15]
[354420717,1740480656490,-2580.53,0.0004219,2]
[354420718,1740480656499,-511.44475258,0.00042191,2]
[354420719,1740480656510,-779.37,0.00042191,2]
[354420720,1740480656519,-382.74,0.00042191,2]
[354420721,1740480656529,-500.0,0.00042191,2]
[354420722,1740480656539,-556.13,0.00042191,2]
[354420723,1740480656548,-500.0,0.00042191,2]
[354420724,1740480656558,-500.0,0.00042191,2]
[354420725,1740480656567,-500.0,0.00042191,2]
[354420726,1740480656577,-500.0,0.00042191,2]
[354420727,1740480656586,-500.0,0.00042191,2]
[354420728,1740480656595,-256.12,0.00042191,2]
[354420729,1740480656605,-500.0,0.00042191,2]
[354420730,1740480656624,-500.0,0.00042191,2]
[354420731,1740480656633,-229.532329,0.00042191,2]
[354420732,1740480656642,-151.442006,0.00042191,2]
[354420733,1740480656652,-570.51,0.00042191,2]
[354420734,1740480656661,-1943.378591,0.00042191,2]
[354420735,1740480656670,-4784.114852,0.00042191,2]
[354420736,1740480656679,-642.07,0.00042191,2]
[354420737,1740480656688,-508.95618309,0.00042191,2]
[354420738,1740480656698,-172.21980566,0.00042191,2]
[354420739,1740480656708,-500.0,0.00042191,2]
[354420740,1740480656718,-500.0,0.00042191,2]
[354420741,1740480656727,-517.9,0.00042191,2]
[354420742,1740480656737,-1669.85,0.00042191,2]
[354420743,1740480656747,-500.0,0.00042191,2]
[354420744,1740480656756,-184.19,0.00042191,2]
[354420745,1740480656765,-500.0,0.00042191,2]
[354420746,1740480656774,-500.0,0.00042191,2]
[354420747,1740480656785,-158.04,0.00042191,2]
[354420748,1740480656794,-196.27793124,0.00042191,2]
[354420749,1740480656803,-500.0,0.00042191,2]
[354420750,1740480656812,-3276.64,0.00042191,2]